fUST/lending_fUST_20250822
["ID","MTS","AMOUNT","RATE_DAILY","PERIOD"]
[380844043,1755873065468,-480.0,0.00056986,120]
[380844044,1755873065477,-480.0,0.00056986,120]
[380844045,1755873065486,-3028.7,0.00056986,120]
[380844046,1755873065495,-1257.37,0.00056986,120]
[380844047,1755873065504,-480.0,0.00056986,120]
[380844048,1755873065514,-838.1,0.00056986,120]
[380844049,1755873065523,-480.0,0.00056986,30]
[380844050,1755873065533,-2617.87,0.00056986,120]
[380844052,1755873065543,-480.0,0.00056986,120]
[380844054,1755873065553,-480.0,0.00056986,120]
[380844056,1755873065563,-480.0,0.00056986,120]
[380844058,1755873065572,-720.0,0.00056986,120]
[380844060,1755873065582,-480.0,0.00056986,120]
[380844062,1755873065591,-573.36,0.00056986,120]
[380844064,1755873065601,-480.0,0.00056986,120]
[380844066,1755873065615,-480.0,0.00056986,120]
[380844068,1755873065626,-480.0,0.00056986,120]
[380844070,1755873065636,-480.0,0.00056986,120]
[380844072,1755873065645,-519.41,0.00056986,120]
[380844074,1755873065655,-412.05,0.00056986,120]
[380844076,1755873065665,-480.0,0.00056986,120]
[380844078,1755873065675,-480.0,0.00056986,120]
[380844080,1755873065684,-491.35940678,0.00056986,120]
[380844082,1755873065694,-623.35,0.00056986,120]
[380844084,1755873065703,-480.0,0.00056986,120]
[380844086,1755873065712,-691.08,0.00056986,120]
[380844088,1755873065722,-480.0,0.00056986,120]
[380844090,1755873065732,-480.0,0.00056986,3]
[380844092,1755873065741,-1329.37,0.00056986,120]
[380844094,1755873065751,-643.49,0.00056986,120]
[380844096,1755873065762,-684.46,0.00056986,120]
[380844098,1755873065771,-480.0,0.00056986,120]
[380844100,1755873065780,-796.03,0.00056986,120]
[380844102,1755873065790,-480.0,0.00056986,120]
[380844104,1755873065799,-1121.48,0.00056986,120]
[380844106,1755873065810,-480.0,0.00056986,120]
[380844108,1755873065819,-600.44,0.00056986,120]
[380844110,1755873065830,-912.67,0.00056986,120]
[380844111,1755873065842,-1897.4420877,0.00057,120]
[380844112,1755873065851,-480.0,0.0005726,120]
[380844113,1755873065887,-480.0,0.0005726,120]
[380844114,1755873065911,-480.0,0.0005726,120]
[380844115,1755873065921,-480.0,0.0005726,120]
[380844116,1755873065930,-380.34,0.0005726,120]
[380844117,1755873065940,-480.0,0.0005726,120]
[380844118,1755873065949,-514.42,0.0005726,120]
[380844119,1755873065958,-607.72,0.0005726,120]
[380844120,1755873065968,-480.0,0.0005726,120]
[380844121,1755873065977,-150.78,0.0005726,120]
[380844122,1755873065987,-500.0,0.0005726,120]
[380844123,1755873065996,-480.0,0.0005726,120]
[380844124,1755873066059,-480.0,0.0005726,120]
[380844125,1755873066076,-529.15,0.0005726,120]
[380844126,1755873066086,-644.15,0.0005726,120]
[380844127,1755873066095,-480.0,0.0005726,120]
[380844128,1755873066107,-480.0,0.0005726,120]
[380844129,1755873066119,-619.97,0.0005726,120]
[380844130,1755873066129,-480.0,0.0005726,120]
[380844131,1755873066138,-1024.56,0.0005726,120]
[380844132,1755873066148,-480.0,0.0005726,120]
[380844133,1755873066158,-480.0,0.0005726,120]
[380844134,1755873066167,-480.0,0.0005726,120]
[380844135,1755873066177,-3028.7,0.0005726,120]
[380844136,1755873066187,-1257.37,0.0005726,120]
[380844137,1755873066196,-480.0,0.0005726,120]
[380844138,1755873066206,-838.1,0.0005726,120]
[380844139,1755873066216,-480.0,0.0005726,30]
[380844140,1755873066226,-2617.87,0.0005726,120]
[380844141,1755873066236,-480.0,0.0005726,120]
[380844142,1755873066245,-480.0,0.0005726,120]
[380844143,1755873066254,-480.0,0.0005726,120]
[380844144,1755873066263,-720.0,0.0005726,120]
[380844145,1755873066273,-480.0,0.0005726,120]
[380844146,1755873066282,-573.36,0.0005726,120]
[380844147,1755873066292,-480.0,0.0005726,120]
[380844148,1755873066301,-480.0,0.0005726,120]
[380844149,1755873066311,-480.0,0.0005726,120]
[380844150,1755873066322,-492.19,0.0005726,120]
[380844151,1755873066335,-519.41,0.0005726,120]
[380844152,1755873066345,-480.0,0.0005726,120]
[380844153,1755873066360,-480.0,0.0005726,120]
[380844154,1755873066371,-623.35,0.0005726,120]
[380844155,1755873066381,-480.0,0.0005726,120]
[380844156,1755873066394,-691.08,0.0005726,120]
[380844157,1755873066404,-406.38569836,0.0005726,120]
[380844158,1755873066414,-480.0,0.0005726,3]
[380844159,1755873066424,-1329.37,0.0005726,120]
[380844160,1755873066434,-643.49,0.0005726,120]
[380844161,1755873066444,-684.46,0.0005726,120]
[380844162,1755873066454,-480.0,0.0005726,120]
[380844163,1755873066463,-796.03,0.0005726,120]
[380844164,1755873066473,-480.0,0.0005726,120]
[380844165,1755873066483,-1121.48,0.0005726,120]
[380844166,1755873066492,-480.0,0.0005726,120]
[380844167,1755873066502,-600.44,0.0005726,120]
[380844168,1755873066512,-150.0,0.000573,120]
[380844169,1755873066521,-1000.0,0.0005738,28]
[380844170,1755873066531,-1000.0,0.000574,28]
[380844171,1755873066541,-191.056363,0.000574,2]
[380844172,1755873066551,-861172.45954902,0.0005744,30]
[380844173,1755873066563,-160.0,0.0005744,30]
[380844174,1755873066574,-1576.53,0.00057479,120]
[380844175,1755873066583,-376.07413479,0.000575,30]
[380844176,1755873066593,-480.0,0.00057534,120]
[380844177,1755873066603,-480.0,0.00057534,120]
[380844178,1755873066619,-569.61,0.00057534,120]
[380844179,1755873066628,-480.0,0.00057534,120]
[380844180,1755873066638,-480.0,0.00057534,120]
[380844181,1755873066647,-514.42,0.00057534,120]
[380844182,1755873066657,-607.72,0.00057534,120]
[380844183,1755873066666,-480.0,0.00057534,120]
[380844184,1755873066676,-500.0,0.00057534,120]
[380844185,1755873066686,-480.0,0.00057534,120]
[380844186,1755873066695,-480.0,0.00057534,120]
[380844187,1755873066704,-529.15,0.00057534,120]
[380844188,1755873066714,-644.15,0.00057534,120]
[380844189,1755873066723,-480.0,0.00057534,120]
[380844190,1755873066732,-480.0,0.00057534,120]
[380844191,1755873066741,-619.97,0.00057534,120]
[380844192,1755873066752,-163.49,0.00057534,120]
[380844193,1755873066761,-1024.56,0.00057534,120]
[380844194,1755873066770,-480.0,0.00057534,120]
[380844195,1755873066780,-480.0,0.00057534,120]
[380844196,1755873066789,-480.0,0.00057534,120]
[380844197,1755873066798,-3028.7,0.00057534,120]
[380844198,1755873066807,-1257.37,0.00057534,120]
[380844199,1755873066816,-480.0,0.00057534,120]
[380844200,1755873066826,-838.1,0.00057534,120]
[380844201,1755873066835,-480.0,0.00057534,30]
[380844202,1755873066845,-2617.87,0.00057534,120]
[380844203,1755873066854,-383.93,0.00057534,120]
[380844204,1755873066868,-480.0,0.00057534,120]
[380844205,1755873066878,-480.0,0.00057534,120]
[380844206,1755873066887,-720.0,0.00057534,120]
[380844207,1755873066897,-480.0,0.00057534,120]
[380844208,1755873066906,-573.36,0.00057534,120]
[380844209,1755873066915,-480.0,0.00057534,120]
[380844210,1755873066925,-480.0,0.00057534,120]
[380844211,1755873066935,-480.0,0.00057534,120]
[380844212,1755873066944,-519.41,0.00057534,120]
[380844213,1755873066954,-480.0,0.00057534,120]
[380844214,1755873066964,-480.0,0.00057534,120]
[380844215,1755873066973,-623.35,0.00057534,120]
[380844216,1755873066982,-218.85347033,0.00057534,120]
[380844217,1755873066991,-691.08,0.00057534,120]
[380844218,1755873067001,-480.0,0.00057534,3]
[380844219,1755873067011,-1329.37,0.00057534,120]
[380844220,1755873067020,-643.49,0.00057534,120]
[380844221,1755873067029,-684.46,0.00057534,120]
[380844222,1755873067039,-480.0,0.00057534,120]
[380844223,1755873067048,-796.03,0.00057534,120]
[380844224,1755873067058,-480.0,0.00057534,120]
[380844225,1755873067067,-1121.48,0.00057534,120]
[380844226,1755873067077,-480.0,0.00057534,120]
[380844227,1755873067087,-600.44,0.00057534,120]
[380844228,1755873067097,-153.0,0.00057709,90]
[380844229,1755873067109,-153.0,0.00057733,90]
[380844230,1755873067118,-153.0,0.00057756,90]
[380844231,1755873067127,-153.0,0.00057779,90]
[380844232,1755873067137,-480.0,0.00057808,120]
[380844233,1755873067146,-480.0,0.00057808,120]
[380844234,1755873067156,-480.0,0.00057808,120]
[380844235,1755873067165,-480.0,0.00057808,120]
[380844236,1755873067175,-514.42,0.00057808,120]
[380844237,1755873067184,-607.72,0.00057808,120]
[380844238,1755873067193,-333.72,0.00057808,120]
[380844239,1755873067202,-172.52,0.00057808,120]
[380844240,1755873067262,-480.0,0.00057808,120]
[380844241,1755873067276,-480.0,0.00057808,120]
[380844242,1755873067286,-529.15,0.00057808,120]
[380844243,1755873067295,-644.15,0.00057808,120]
[380844244,1755873067305,-381.57,0.00057808,120]
[380844245,1755873067318,-480.0,0.00057808,120]
[380844246,1755873067327,-619.97,0.00057808,120]
[380844247,1755873067336,-1024.56,0.00057808,120]
[380844248,1755873067346,-480.0,0.00057808,120]
[380844249,1755873067358,-480.0,0.00057808,120]
[380844250,1755873067367,-480.0,0.00057808,120]
[380844251,1755873067380,-3028.7,0.00057808,120]
[380844252,1755873067390,-1257.37,0.00057808,120]
[380844253,1755873067399,-480.0,0.00057808,120]
[380844254,1755873067409,-838.1,0.00057808,120]
[380844255,1755873067420,-480.0,0.00057808,30]
[380844256,1755873067432,-2617.87,0.00057808,120]
[380844257,1755873067442,-183.15,0.00057808,120]
[380844258,1755873067452,-423.13,0.00057808,120]
[380844259,1755873067464,-720.0,0.00057808,120]
[380844260,1755873067473,-480.0,0.00057808,120]
[380844261,1755873067482,-573.36,0.00057808,120]
[380844262,1755873067492,-480.0,0.00057808,120]
[380844263,1755873067502,-553.53,0.00057808,120]
[380844264,1755873067511,-480.0,0.00057808,120]
[380844265,1755873067524,-519.41,0.00057808,120]
[380844266,1755873067533,-191.77,0.00057808,120]
[380844267,1755873067543,-480.0,0.00057808,120]
[380844268,1755873067553,-623.35,0.00057808,120]
[380844269,1755873067562,-691.08,0.00057808,120]
[380844270,1755873067572,-480.0,0.00057808,3]
[380844271,1755873067582,-1329.37,0.00057808,120]
[380844272,1755873067591,-643.49,0.00057808,120]
[380844273,1755873067601,-684.46,0.00057808,120]
[380844274,1755873067614,-480.0,0.00057808,120]
[380844275,1755873067623,-796.03,0.00057808,120]
[380844276,1755873067633,-503.00613715,0.00057808,120]
[380844277,1755873067642,-1121.48,0.00057808,120]
[380844278,1755873067651,-480.0,0.00057808,120]
[380844279,1755873067660,-600.44,0.00057808,120]
[380844280,1755873067670,-1000.0,0.00058,120]
[380844281,1755873067679,-167.12166732,0.00058,60]
[380844282,1755873067688,-4318.05,0.00058,14]
[380844283,1755873067697,-1576.53,0.00058027,120]
[380844284,1755873067707,-377.64,0.00058082,120]
[380844285,1755873067716,-480.0,0.00058082,120]
[380844286,1755873067726,-480.0,0.00058082,120]
[380844287,1755873067735,-480.0,0.00058082,120]
[380844288,1755873067745,-514.42,0.00058082,120]
[380844289,1755873067754,-607.72,0.00058082,120]
[380844290,1755873067763,-480.0,0.00058082,120]
[380844291,1755873067772,-480.0,0.00058082,120]
[380844292,1755873067782,-529.15,0.00058082,120]
[380844293,1755873067791,-644.15,0.00058082,120]
[380844294,1755873067800,-480.0,0.00058082,120]
[380844295,1755873067810,-619.97,0.00058082,120]
[380844296,1755873067819,-1024.56,0.00058082,120]
[380844297,1755873067829,-480.0,0.00058082,120]
[380844298,1755873067839,-190.00000026,0.00058082,120]
[380844299,1755873067848,-480.0,0.00058082,120]
[380844300,1755873067859,-3028.7,0.00058082,120]
[380844301,1755873067868,-1257.37,0.00058082,120]
[380844302,1755873067878,-480.0,0.00058082,120]
[380844303,1755873067887,-838.1,0.00058082,120]
[380844304,1755873067898,-480.0,0.00058082,30]
[380844305,1755873067908,-2617.87,0.00058082,120]
[380844306,1755873067918,-720.0,0.00058082,120]
[380844307,1755873067927,-187.59,0.00058082,120]
[380844308,1755873067938,-573.36,0.00058082,120]
[380844309,1755873067947,-480.0,0.00058082,120]
[380844310,1755873067958,-556.32,0.00058082,120]
[380844311,1755873067968,-519.41,0.00058082,120]
[380844312,1755873067978,-480.0,0.00058082,120]
[380844313,1755873067987,-623.35,0.00058082,120]
[380844314,1755873067997,-691.08,0.00058082,120]
[380844315,1755873068007,-480.0,0.00058082,3]
[380844316,1755873068018,-1329.37,0.00058082,120]
[380844317,1755873068027,-643.49,0.00058082,120]
[380844318,1755873068037,-684.46,0.00058082,120]
[380844319,1755873068046,-480.0,0.00058082,120]
[380844320,1755873068055,-796.03,0.00058082,120]
[380844321,1755873068064,-1121.48,0.00058082,120]
[380844322,1755873068073,-480.0,0.00058082,120]
[380844323,1755873068083,-600.44,0.00058082,120]
[380844324,1755873068092,-27689.04,0.000581,14]
[380844325,1755873068101,-152.2037061,0.00058157,120]
[380844326,1755873068115,-155.0,0.000582,120]
[380844327,1755873068124,-408.0,0.00058282,120]
[380844328,1755873068134,-158.0,0.00058312,120]
[380844329,1755873068143,-480.0,0.00058356,120]
[380844330,1755873068153,-480.0,0.00058356,120]
[380844331,1755873068162,-480.0,0.00058356,120]
[380844332,1755873068172,-514.42,0.00058356,120]
[380844333,1755873068188,-607.72,0.00058356,120]
[380844334,1755873068207,-578.86,0.00058356,120]
[380844335,1755873068216,-480.0,0.00058356,120]
[380844336,1755873068225,-529.15,0.00058356,120]
[380844337,1755873068234,-644.15,0.00058356,120]
[380844338,1755873068243,-480.0,0.00058356,120]
[380844339,1755873068253,-619.97,0.00058356,120]
[380844340,1755873068262,-1024.56,0.00058356,120]
[380844341,1755873068271,-584.08316522,0.00058356,120]
[380844342,1755873068281,-480.0,0.00058356,120]
[380844343,1755873068290,-3028.7,0.00058356,120]
[380844344,1755873068299,-1257.37,0.00058356,120]
[380844345,1755873068308,-434.23,0.00058356,120]
[380844346,1755873068318,-838.1,0.00058356,120]
[380844347,1755873068382,-480.0,0.00058356,30]
[380844348,1755873068392,-2617.87,0.00058356,120]
[380844349,1755873068402,-720.0,0.00058356,120]
[380844350,1755873068412,-573.36,0.00058356,120]
[380844351,1755873068422,-480.0,0.00058356,120]
[380844352,1755873068432,-519.41,0.00058356,120]
[380844353,1755873068442,-480.0,0.00058356,120]
[380844354,1755873068451,-623.35,0.00058356,120]
[380844355,1755873068461,-691.08,0.00058356,120]
[380844356,1755873068472,-480.0,0.00058356,3]
[380844357,1755873068482,-1329.37,0.00058356,120]
[380844358,1755873068491,-643.49,0.00058356,120]
[380844359,1755873068500,-684.46,0.00058356,120]
[380844360,1755873068509,-480.0,0.00058356,120]
[380844361,1755873068518,-796.03,0.00058356,120]
[380844362,1755873068527,-1121.48,0.00058356,120]
[380844363,1755873068537,-480.0,0.00058356,120]
[380844364,1755873068546,-1576.53,0.00058575,120]
[380844365,1755873068556,-600.0,0.00058588,90]
[380844366,1755873068566,-165.93,0.000586,14]
[380844367,1755873068575,-480.0,0.0005863,120]
[380844368,1755873068585,-480.0,0.0005863,120]
[380844369,1755873068595,-256.36,0.0005863,120]
[380844370,1755873068606,-514.42,0.0005863,120]
[380844371,1755873068618,-607.72,0.0005863,120]
[380844372,1755873068628,-480.0,0.0005863,120]
[380844373,1755873068638,-529.15,0.0005863,120]
[380844374,1755873068647,-644.15,0.0005863,120]
[380844375,1755873068657,-480.0,0.0005863,120]
[380844376,1755873068666,-619.97,0.0005863,120]
[380844377,1755873068675,-1024.56,0.0005863,120]
[380844378,1755873068684,-302.95,0.0005863,120]
[380844379,1755873068694,-3028.7,0.0005863,120]
[380844380,1755873068704,-1257.37,0.0005863,120]
[380844381,1755873068713,-838.1,0.0005863,120]
[380844382,1755873068724,-480.0,0.0005863,30]
[380844383,1755873068733,-2617.87,0.0005863,120]
[380844384,1755873068743,-720.0,0.0005863,120]
[380844385,1755873068753,-573.36,0.0005863,120]
[380844386,1755873068763,-480.0,0.0005863,120]
[380844387,1755873068772,-519.41,0.0005863,120]
[380844388,1755873068782,-270.69,0.0005863,120]
[380844389,1755873068791,-623.35,0.0005863,120]
[380844390,1755873068800,-691.08,0.0005863,120]
[380844391,1755873068810,-480.0,0.0005863,3]
[380844392,1755873068819,-1329.37,0.0005863,120]
[380844393,1755873068829,-643.49,0.0005863,120]
[380844394,1755873068839,-684.46,0.0005863,120]
[380844395,1755873068848,-480.0,0.0005863,120]
[380844396,1755873068860,-796.03,0.0005863,120]
[380844397,1755873068869,-1121.48,0.0005863,120]
[380844398,1755873068878,-376.31,0.0005863,120]
[380844399,1755873068887,-480.0,0.00058904,120]
[380844400,1755873068896,-480.0,0.00058904,120]
[380844401,1755873068907,-514.42,0.00058904,120]
[380844402,1755873068916,-607.72,0.00058904,120]
[380844403,1755873068925,-480.0,0.00058904,120]
[380844404,1755873068936,-529.15,0.00058904,120]
[380844405,1755873068952,-644.15,0.00058904,120]
[380844406,1755873068965,-607.95,0.00058904,120]
[380844407,1755873068974,-619.97,0.00058904,120]
[380844408,1755873068983,-1024.56,0.00058904,120]
[380844409,1755873068992,-3028.7,0.00058904,120]
[380844410,1755873069002,-1257.37,0.00058904,120]
[380844411,1755873069011,-838.1,0.00058904,120]
[380844412,1755873069020,-480.0,0.00058904,30]
[380844413,1755873069030,-2617.87,0.00058904,120]
[380844414,1755873069039,-720.0,0.00058904,120]
[380844415,1755873069049,-573.36,0.00058904,120]
[380844416,1755873069059,-480.0,0.00058904,120]
[380844417,1755873069068,-519.41,0.00058904,120]
[380844418,1755873069078,-623.35,0.00058904,120]
[380844419,1755873069088,-691.08,0.00058904,120]
[380844420,1755873069098,-480.0,0.00058904,3]
[380844421,1755873069110,-1329.37,0.00058904,120]
[380844422,1755873069119,-643.49,0.00058904,120]
[380844423,1755873069128,-684.46,0.00058904,120]
[380844424,1755873069138,-480.0,0.00058904,120]
[380844425,1755873069147,-796.03,0.00058904,120]
[380844426,1755873069157,-1121.48,0.00058904,120]
[380844427,1755873069166,-168.28462006,0.00058922,120]
[380844428,1755873069175,-700.0,0.00058932,120]
[380844429,1755873069185,-152.2037061,0.00059076,120]
[380844430,1755873069194,-1576.53,0.00059123,120]
[380844431,1755873069204,-480.0,0.00059178,120]
[380844432,1755873069213,-287.6,0.00059178,120]
[380844433,1755873069224,-514.42,0.00059178,120]
[380844434,1755873069234,-607.72,0.00059178,120]
[380844435,1755873069243,-480.0,0.00059178,120]
[380844436,1755873069252,-529.15,0.00059178,120]
[380844437,1755873069261,-644.15,0.00059178,120]
[380844438,1755873069270,-619.97,0.00059178,120]
[380844439,1755873069280,-1024.56,0.00059178,120]
[380844440,1755873069289,-3028.7,0.00059178,120]
[380844441,1755873069298,-1257.37,0.00059178,120]
[380844442,1755873069307,-838.1,0.00059178,120]
[380844443,1755873069317,-234.63,0.00059178,30]
[380844444,1755873069326,-2617.87,0.00059178,120]
[380844445,1755873069391,-720.0,0.00059178,120]
[380844446,1755873069402,-573.36,0.00059178,120]
[380844447,1755873069412,-291.77,0.00059178,120]
[380844448,1755873069422,-519.41,0.00059178,120]
[380844449,1755873069433,-623.35,0.00059178,120]
[380844450,1755873069443,-691.08,0.00059178,120]
[380844451,1755873069452,-480.0,0.00059178,3]
[380844452,1755873069462,-1329.37,0.00059178,120]
[380844453,1755873069472,-643.49,0.00059178,120]
[380844454,1755873069482,-684.46,0.00059178,120]
[380844455,1755873069492,-480.0,0.00059178,120]
[380844456,1755873069502,-796.03,0.00059178,120]
[380844457,1755873069511,-1121.48,0.00059178,120]
[380844458,1755873069520,-420.92,0.0005926,30]
[380844459,1755873069529,-165.93,0.000593,14]
[380844460,1755873069538,-480.0,0.00059452,120]
[380844461,1755873069548,-514.42,0.00059452,120]
[380844462,1755873069557,-607.72,0.00059452,120]
[380844463,1755873069567,-480.0,0.00059452,120]
[380844464,1755873069576,-529.15,0.00059452,120]
[380844465,1755873069585,-644.15,0.00059452,120]
[380844466,1755873069595,-619.97,0.00059452,120]
[380844467,1755873069605,-1024.56,0.00059452,120]
[380844468,1755873069619,-3028.7,0.00059452,120]
[380844469,1755873069629,-1257.37,0.00059452,120]
[380844470,1755873069639,-838.1,0.00059452,120]
[380844471,1755873069649,-2617.87,0.00059452,120]
[380844472,1755873069659,-720.0,0.00059452,120]
[380844473,1755873069669,-573.36,0.00059452,120]
[380844474,1755873069679,-519.41,0.00059452,120]
[380844475,1755873069688,-623.35,0.00059452,120]
[380844476,1755873069698,-691.08,0.00059452,120]
[380844477,1755873069707,-227.53419696,0.00059452,3]
[380844478,1755873069717,-1329.37,0.00059452,120]
[380844479,1755873069727,-643.49,0.00059452,120]
[380844480,1755873069737,-684.46,0.00059452,120]
[380844481,1755873069746,-480.0,0.00059452,120]
[380844482,1755873069756,-796.03,0.00059452,120]
[380844483,1755873069766,-1121.48,0.00059452,120]
[380844484,1755873069775,-700.0,0.0005948,120]
[380844485,1755873069784,-1576.53,0.00059671,120]
[380844486,1755873069794,-276.71,0.00059726,120]
[380844487,1755873069804,-514.42,0.00059726,120]
[380844488,1755873069814,-607.72,0.00059726,120]
[380844489,1755873069823,-480.0,0.00059726,120]
[380844490,1755873069837,-529.15,0.00059726,120]
[380844491,1755873069856,-644.15,0.00059726,120]
[380844492,1755873069875,-619.97,0.00059726,120]
[380844493,1755873069894,-1024.56,0.00059726,120]
[380844494,1755873069913,-3028.7,0.00059726,120]
[380844495,1755873069931,-1257.37,0.00059726,120]
[380844496,1755873069949,-838.1,0.00059726,120]
[380844497,1755873069966,-2617.87,0.00059726,120]
[380844498,1755873069980,-720.0,0.00059726,120]
[380844499,1755873070000,-573.36,0.00059726,120]
[380844500,1755873070019,-519.41,0.00059726,120]
[380844501,1755873070035,-623.35,0.00059726,120]
[380844502,1755873070049,-691.08,0.00059726,120]
[380844503,1755873070067,-1329.37,0.00059726,120]
[380844504,1755873070083,-643.49,0.00059726,120]
[380844505,1755873070098,-684.46,0.00059726,120]
[380844506,1755873070117,-480.0,0.00059726,120]
[380844507,1755873070132,-796.03,0.00059726,120]
[380844508,1755873070146,-1121.48,0.00059726,120]
[380844509,1755873070162,-3649.56076364,0.000599,120]
[380844510,1755873070176,-1735.9840757,0.0005999,77]
[380844511,1755873070190,-152.2037061,0.00059994,120]
[380844512,1755873070204,-514.42,0.00059999,120]
[380844513,1755873070220,-607.72,0.00059999,120]
[380844514,1755873070233,-480.0,0.00059999,120]
[380844515,1755873070248,-529.15,0.00059999,120]
[380844516,1755873070263,-644.15,0.00059999,120]
[380844517,1755873070277,-619.97,0.00059999,120]
[380844518,1755873070292,-1024.56,0.00059999,120]
[380844519,1755873070306,-3028.7,0.00059999,120]
[380844520,1755873070320,-1257.37,0.00059999,120]
[380844521,1755873070335,-838.1,0.00059999,120]
[380844522,1755873070350,-2617.87,0.00059999,120]
[380844523,1755873070367,-720.0,0.00059999,120]
[380844524,1755873070385,-573.36,0.00059999,120]
[380844525,1755873070399,-519.41,0.00059999,120]
[380844526,1755873070413,-623.35,0.00059999,120]
[380844527,1755873070429,-691.08,0.00059999,120]
[380844528,1755873070443,-1329.37,0.00059999,120]
[380844529,1755873070457,-643.49,0.00059999,120]
[380844530,1755873070472,-684.46,0.00059999,120]
[380844531,1755873070485,-480.0,0.00059999,120]
[380844532,1755873070499,-796.03,0.00059999,120]
[380844533,1755873070513,-1121.48,0.00059999,120]
[380844534,1755873070527,-163.48876168,0.0006,120]
[380844535,1755873070617,-704.68855999,0.0006,12]
[380844536,1755873070630,-241.39927553,0.0006,120]
[380844537,1755873070639,-500.0,0.0006,120]
[380844538,1755873070649,-1015.0,0.0006,120]
[380844539,1755873070658,-700.0,0.00060028,120]
[380844540,1755873070668,-1576.53,0.00060219,120]
[380844541,1755873070678,-514.42,0.00060273,120]
[380844542,1755873070687,-607.72,0.00060273,120]
[380844543,1755873070697,-471.10865272,0.00060273,120]
[380844544,1755873070706,-529.15,0.00060273,120]
[380844545,1755873070715,-644.15,0.00060273,120]
[380844546,1755873070725,-619.97,0.00060273,120]
[380844547,1755873070735,-1024.56,0.00060273,120]
[380844548,1755873070744,-3028.7,0.00060273,120]
[380844549,1755873070754,-1257.37,0.00060273,120]
[380844550,1755873070763,-838.1,0.00060273,120]
[380844551,1755873070773,-2617.87,0.00060273,120]
[380844552,1755873070782,-494.03245073,0.00060273,120]
[380844553,1755873070873,-150.11,0.00026992,7]
[380844554,1755873070883,-973.0,0.00040282,2]
[380844555,1755873070892,-480.0,0.00056438,120]
[380844556,1755873070902,-225.96754927,0.00060273,120]
[380844557,1755873070912,-573.36,0.00060273,120]
[380844558,1755873070921,-519.41,0.00060273,120]
[380844559,1755873070931,-623.35,0.00060273,120]
[380844560,1755873070941,-691.08,0.00060273,120]
[380844561,1755873070950,-1329.37,0.00060273,120]
[380844562,1755873070959,-643.49,0.00060273,120]
[380844563,1755873070969,-684.46,0.00060273,120]
[380844564,1755873070979,-301.08,0.00060273,120]
[380844565,1755873070988,-796.03,0.00060273,120]
[380844566,1755873070997,-1121.48,0.00060273,120]
[380844567,1755873071007,-155.0,0.000605,120]
[380844568,1755873071016,-514.42,0.00060547,120]
[380844569,1755873071026,-607.72,0.00060547,120]
[380844570,1755873071036,-529.15,0.00060547,120]
[380844571,1755873071045,-644.15,0.00060547,120]
[380844572,1755873071055,-619.97,0.00060547,120]